bitfinex/quotes_SOLUSD_20240712
["timestamp","ask_amount","ask_price","bid_price","bid_amount"]
[1720787212618,1.47695841,136.89,136.86,14.39]
[1720787212790,1.47695841,136.89,136.85,14.39]
[1720787214222,1.47695841,136.89,136.86,14.39]
[1720787214890,1.47695841,136.89,136.85,14.39]
[1720787217110,1.47695841,136.89,136.87,14.39]
[1720787217308,0.2,136.89,136.87,14.39]
[1720787218499,1.47695841,136.89,136.87,14.39]
[1720787218809,1.47695841,136.89,136.86,14.39]
[1720787219816,1.47695841,136.89,136.8,45.0]
[1720787220028,1.47695841,136.89,136.85,14.39]
[1720787220322,8.78205841,136.89,136.85,14.39]
[1720787220626,1.47695841,136.89,136.85,14.39]
[1720787220923,1.47695841,136.89,136.86,14.39]
[1720787221219,8.78215841,136.89,136.86,14.39]
[1720787221412,1.47695841,136.89,136.85,14.39]
[1720787221621,15.6938,136.88,136.85,14.39]
[1720787221929,1.27695841,136.87,136.81,20.0]
[1720787222103,1.27695841,136.87,136.84,14.39]
[1720787224312,1.27695841,136.87,136.86,14.39]
[1720787224639,0.2,136.89,136.86,14.39]
[1720787224640,1.47695841,136.89,136.86,14.39]
[1720787226408,1.47695841,136.89,136.81,1.46146113]
[1720787226927,1.47695841,136.89,136.86,14.39]
[1720787228632,1.47695841,136.89,136.87,14.39]
[1720787229135,0.2,136.89,136.87,14.39]
[1720787229431,1.47695841,136.89,136.87,14.39]
[1720787229816,1.47695841,136.89,136.88,14.39]
[1720787230221,0.2,136.89,136.88,14.39]
[1720787236144,0.2,136.89,136.84,16.4767]
[1720787236313,0.2,136.89,136.87,14.39]
[1720787236717,0.2,136.89,136.88,14.39]
[1720787237347,0.2,136.89,136.82,6.553]
[1720787237557,1.47695841,136.89,136.87,14.39]
[1720787237724,1.47695841,136.89,136.83,20.0]
[1720787237920,1.47695841,136.89,136.86,14.39]
[1720787238445,1.47695841,136.89,136.8,22.37843688]
[1720787238652,1.47695841,136.89,136.86,14.39]
[1720787240426,1.47695841,136.89,136.87,14.39]
[1720787241039,1.47695841,136.89,136.88,14.39]
[1720787241429,0.2,136.89,136.88,14.39]
[1720787242529,1.47695841,136.89,136.88,14.39]
[1720787242849,0.2,136.89,136.88,14.39]
[1720787248045,0.2,136.89,136.85,73.4021]
[1720787248228,0.2,136.89,136.86,1.46117186]
[1720787248428,0.2,136.89,136.85,15.8421]
[1720787248736,1.47695841,136.89,136.88,14.39]
[1720787248954,0.2,136.89,136.88,14.39]
[1720787257466,0.2,136.89,136.88,34.39]
[1720787260175,0.2,136.89,136.88,35.85082878]
[1720787260342,0.2,136.89,136.88,80.85082878]
[1720787261264,1.46238176,136.92,136.88,80.85082878]
[1720787261464,2.12420391,136.95,136.91,71.95]
[1720787261763,2.12420391,136.95,136.94,14.39]
[1720787261956,0.8472455,136.95,136.94,14.39]
[1720787262461,0.2,136.99,136.94,14.39]
[1720787262644,0.2,136.99,136.98,14.39]
[1720787262843,0.2,136.99,136.92,6.3406]
[1720787263138,0.2,136.99,136.98,14.39]
[1720787263338,0.2,136.99,136.93,65.0]
[1720787263739,0.2,136.99,136.98,14.39]
[1720787264140,0.2,136.99,136.93,65.0]
[1720787264336,0.2,136.99,136.93,20.0]
[1720787264571,0.2,136.99,136.98,14.39]
[1720787265059,1.47695841,136.99,136.98,14.39]
[1720787265273,0.2,136.99,136.98,14.39]
[1720787265860,1.47695841,136.99,136.92,63.9006]
[1720787266166,1.47695841,136.99,136.98,14.39]
[1720787266542,1.47695841,136.99,136.92,6.3406]
[1720787266763,1.47695841,136.99,136.97,14.39]
[1720787267144,1.47695841,136.99,136.98,14.39]
[1720787267968,0.2,136.99,136.98,14.39]
[1720787268466,0.2,136.99,136.98,13.89]
[1720787268966,1.47695841,136.99,136.92,6.3406]
[1720787269157,1.47695841,136.99,136.98,14.39]
[1720787273365,0.2,136.99,136.98,14.39]
[1720787273975,0.2,136.99,136.98,34.39]
[1720787274657,0.2,136.99,136.98,14.39]
[1720787274850,0.2,136.99,136.98,34.39]
[1720787275677,0.2,136.99,136.98,14.39]
[1720787275842,1.47695841,136.99,136.92,6.3406]
[1720787276045,0.2,136.99,136.98,14.39]
[1720787276461,1.47695841,136.99,136.98,14.39]
[1720787277750,0.2,136.99,136.98,14.39]
[1720787278149,1.47695841,136.99,136.98,14.39]
[1720787278973,0.2,136.99,136.98,14.39]
[1720787282961,0.2,136.99,136.94,1.45990519]
[1720787283272,0.2,136.99,136.98,14.39]
[1720787283780,0.2,136.99,136.98,29.7416]
[1720787283977,1.46,137.0,136.98,113.7876]
[1720787284275,1.46,137.0,136.99,14.39]
[1720787284888,1.46,137.0,136.95,6.2178]
[1720787285077,1.46,137.0,136.99,14.39]
[1720787286378,1.46,137.0,136.99,28.78]
[1720787286573,1.46,137.0,136.99,48.78]
[1720787287560,1.46,137.0,136.99,91.95]
[1720787288886,1.46,137.0,136.99,14.39]
[1720787289471,1.46,137.0,136.91,6.3458]
[1720787289677,1.27695841,136.99,136.92,57.56]
[1720787289974,1.27695841,136.98,136.97,14.39]
[1720787290173,2.73695841,137.0,136.97,14.39]
[1720787290376,2.73695841,137.0,136.91,6.3458]
[1720787290588,2.73695841,137.0,136.97,14.39]
[1720787290886,7.2999,136.99,136.92,57.56]
[1720787291084,1.27695841,136.98,136.96,14.39]
[1720787291277,1.27695841,136.98,136.97,14.39]
[1720787291667,1.27695841,136.98,136.92,57.56]
[1720787291876,1.27695841,136.98,136.96,14.39]
[1720787292083,8.7594,137.0,136.96,14.39]
[1720787292390,1.27695841,136.99,136.98,14.39]
[1720787292559,1.46,137.0,136.98,14.39]
[1720787292759,1.46,137.0,136.99,14.39]
[1720787292957,1.46,137.0,136.92,57.56]
[1720787293264,1.27695841,136.99,136.98,14.39]
[1720787293673,1.46,137.0,136.98,14.39]
[1720787293879,1.46,137.0,136.99,14.39]
[1720787295379,1.46,137.0,136.92,57.56]
[1720787295594,1.27695841,136.99,136.98,14.39]
[1720787296874,1.27695841,136.99,136.89,7.09883688]
[1720787297178,7.3003,136.98,136.9,1.46039984]
[1720787297370,1.27695841,136.97,136.95,14.39]
[1720787297564,1.27695841,136.99,136.95,14.39]
[1720787297791,1.27695841,136.98,136.89,7.09883688]
[1720787297998,1.27695841,136.98,136.95,14.39]
[1720787298704,1.27695841,136.97,136.96,14.39]
[1720787298999,1.27695841,136.99,136.96,14.39]
[1720787299300,1.27695841,136.98,136.96,14.39]
[1720787300004,1.27695841,136.98,136.95,14.39]
[1720787300296,8.7592,137.0,136.96,14.39]
[1720787300297,1.27695841,136.97,136.96,14.39]
[1720787300500,1.27695841,136.99,136.96,14.39]
[1720787300701,1.27695841,136.98,136.96,14.39]
[1720787300897,1.27695841,136.98,136.97,14.39]
[1720787301095,1.27695841,136.98,136.96,14.39]
[1720787301304,1.46,137.0,136.97,14.39]
[1720787301481,1.46,137.0,136.99,14.39]
[1720787302001,1.46,137.0,136.94,1.45764561]
[1720787302183,1.46,137.0,136.99,14.39]
[1720787307296,1.46,137.0,136.99,28.78]
[1720787307497,1.46,137.0,136.99,136.95]
[1720787308202,1.27695841,137.05,136.99,136.95]
[1720787308399,1.27695841,137.04,137.0,21.45962056]
[1720787308592,1.27695841,137.07,137.03,14.39]
[1720787308904,1.27695841,137.07,137.05,14.39]
[1720787309710,1.27695841,137.06,137.05,14.39]
[1720787309894,1.27695841,137.08,137.05,14.39]
[1720787310096,1.27695841,137.07,137.05,13.89]
[1720787310300,1.27695841,137.07,137.06,14.39]
[1720787310611,1.27695841,137.07,137.05,14.39]
[1720787310986,1.27695841,137.06,137.05,14.39]
[1720787311288,1.0472455,137.09,137.05,14.39]
[1720787311289,1.27695841,137.08,137.05,14.39]
[1720787311496,1.27695841,137.07,137.06,14.39]
[1720787311693,1.27695841,137.07,137.05,14.39]
[1720787312020,1.27695841,137.07,137.06,14.39]
[1720787312305,7.296,137.06,136.95,7.09883688]
[1720787312514,1.27695841,137.07,137.02,14.39]
[1720787312515,1.27695841,137.05,137.02,14.39]
[1720787312683,21.6856,137.07,137.02,14.39]
[1720787312886,1.27695841,137.06,137.02,14.39]
[1720787314711,8.57325841,137.06,137.02,14.39]
[1720787315009,1.27695841,137.06,137.02,14.39]
[1720787315196,1.27695841,137.06,136.99,14.39]
[1720787315505,1.27695841,137.07,137.03,14.39]
[1720787316096,8.57245841,137.07,137.03,14.39]
[1720787319093,7.296,137.06,137.03,14.39]
[1720787319317,1.27695841,137.05,137.03,14.39]
[1720787319514,1.27695841,137.04,137.03,14.39]
[1720787320504,1.27695841,137.07,137.03,14.39]
[1720787320703,1.27695841,137.07,137.04,14.39]
[1720787320896,8.57285841,137.07,137.04,14.39]
[1720787321923,7.2961,137.06,137.04,14.39]
[1720787322121,1.27695841,137.05,136.93,11.45702368]
[1720787322419,1.27695841,137.04,137.03,14.39]
[1720787322791,1.27695841,137.06,137.03,14.39]
[1720787323020,1.27695841,137.06,136.99,57.56]
[1720787323021,1.27695841,137.06,136.94,20.0]
[1720787323224,1.27695841,137.06,137.02,14.39]
[1720787323411,1.27695841,137.06,137.03,14.39]
[1720787323821,1.27695841,137.06,137.04,14.39]
[1720787324118,1.27695841,137.07,137.05,14.39]
[1720787324322,1.27695841,137.07,137.06,14.39]
[1720787324514,1.27695841,137.07,136.99,57.56]
[1720787324726,1.27695841,137.07,137.04,14.39]
[1720787325809,1.27695841,137.07,136.99,57.56]
[1720787325810,8.57275841,137.07,137.03,14.39]
[1720787326021,1.27695841,137.07,137.03,14.39]
[1720787326320,1.27695841,137.07,137.04,14.39]
[1720787327323,1.27695841,137.07,137.05,14.39]
[1720787327702,1.27695841,137.06,137.05,14.39]
[1720787327910,8.3418455,137.09,137.05,14.39]
[1720787327911,1.27695841,137.08,137.05,14.39]
[1720787328118,1.27695841,137.07,137.05,14.39]
[1720787328830,1.27695841,137.07,137.04,14.39]
[1720787329118,8.57245841,137.07,136.95,1.4594824]
[1720787329323,1.27695841,137.07,137.03,14.39]
[1720787329999,8.57265841,137.07,137.03,14.39]
[1720787331743,1.27695841,137.07,137.03,14.39]
[1720787332026,1.27695841,137.07,137.04,14.39]
[1720787333511,1.27695841,137.07,137.03,14.39]
[1720787333726,1.27695841,137.07,137.04,14.39]
[1720787334704,8.57245841,137.07,137.0,1.4595152]
[1720787334904,1.27695841,137.07,137.04,14.39]
[1720787335124,1.27695841,137.07,137.03,14.39]
[1720787335527,7.2961,137.06,136.93,11.45702368]
[1720787335715,15.66695841,137.07,137.02,14.39]
[1720787335716,1.27695841,137.05,137.02,14.39]
[1720787335919,1.27695841,137.04,137.03,14.39]
[1720787336247,1.27695841,137.07,137.03,14.39]
[1720787336532,8.57245841,137.07,137.04,14.39]
[1720787337639,8.57245841,137.07,137.03,14.39]
[1720787339411,7.2961,137.06,136.99,57.56]
[1720787339613,15.66695841,137.05,136.92,57.56]
[1720787339823,7.2977,137.03,136.99,14.39]
[1720787340114,1.27695841,137.02,136.99,14.39]
[1720787340440,1.27695841,137.02,137.01,14.39]
[1720787340625,1.27695841,137.04,136.93,7.09883688]
[1720787340833,1.27695841,137.04,137.01,14.39]
[1720787341142,1.27695841,137.04,137.03,14.39]
[1720787341447,1.27695841,137.06,137.03,14.39]
[1720787341620,1.27695841,137.06,137.04,14.39]
[1720787341931,1.27695841,137.06,137.03,14.39]
[1720787341932,8.57305841,137.06,137.03,14.39]
[1720787342136,1.27695841,137.06,137.04,14.39]
[1720787342336,1.27695841,137.05,137.03,14.39]
[1720787342525,1.27695841,137.05,136.93,7.09883688]
[1720787342836,1.27695841,137.07,136.94,66.45961188]
[1720787343006,1.27695841,137.07,136.94,73.55844876]
[1720787343624,8.57245841,137.07,136.94,72.09883688]
[1720787343940,11.27695841,137.07,136.94,72.09883688]
[1720787344246,7.2965,137.06,136.94,72.09883688]
[1720787344439,1.27695841,137.05,136.94,72.09883688]
[1720787344613,1.27695841,137.04,136.94,72.09883688]
[1720787344813,1.27695841,137.04,136.95,1.45981973]
[1720787345916,1.27695841,137.04,136.94,72.09883688]
[1720787347221,1.27695841,137.03,136.94,72.09883688]
[1720787347430,1.27695841,137.06,136.94,72.09883688]
[1720787347737,8.57305841,137.06,136.94,72.09883688]
[1720787348340,1.27695841,137.05,136.95,1.45980842]
[1720787349444,1.27695841,137.06,136.95,1.45980842]
[1720787350737,1.27695841,137.07,136.95,1.45980842]
[1720787350943,1.27695841,137.07,136.95,8.5586453]
[1720787351154,1.27695841,137.07,136.96,72.09883688]
[1720787351335,1.27695841,137.07,136.97,1.45943742]
[1720787351645,1.27695841,137.07,136.97,66.45943742]
[1720787351815,1.27695841,137.07,136.97,73.5582743]
[1720787352017,1.27695841,137.07,136.97,72.09883688]
[1720787352230,8.57265841,137.07,136.97,72.09883688]
[1720787352436,1.27695841,137.07,136.97,72.09883688]
[1720787353138,1.27695841,137.06,136.97,72.09883688]
[1720787353321,1.27695841,137.08,136.97,72.09883688]
[1720787353634,1.27695841,137.07,136.97,72.09883688]
[1720787354431,1.27695841,137.08,136.97,72.09883688]
[1720787354720,1.27695841,137.07,136.97,72.09883688]
[1720787355625,1.27695841,137.07,136.98,1.45955146]
[1720787355823,7.2962,137.06,136.98,1.45955146]
[1720787356133,1.27695841,137.05,136.94,7.295]
[1720787356448,1.27695841,137.04,136.94,7.295]
[1720787357019,1.27695841,137.04,136.95,65.0]
[1720787357348,1.27695841,137.05,136.95,65.0]
[1720787357645,1.27695841,137.04,136.95,65.0]
[1720787357829,1.27695841,137.03,136.95,65.0]
[1720787358021,1.27695841,137.06,136.95,65.0]
[1720787358227,8.57305841,137.06,136.95,65.0]
[1720787359152,8.57305841,137.06,136.96,1.03123822]
[1720787359653,8.57305841,137.06,136.96,1.45974952]
[1720787359838,1.27695841,137.06,136.96,1.45974952]
[1720787360222,8.57295841,137.06,136.96,1.45974952]
[1720787360435,1.27695841,137.05,136.96,1.45974952]
[1720787360751,1.27695841,137.07,136.95,65.0]
[1720787361054,1.27695841,137.07,136.95,72.09883688]
[1720787361950,1.27695841,137.07,136.96,8.55832138]
[1720787362133,1.27695841,137.08,136.97,65.0]
[1720787362332,1.27695841,137.07,136.98,1.45936546]
[1720787363225,1.27695841,137.08,136.98,1.45936546]
[1720787363530,1.27695841,137.08,136.97,72.09883688]
[1720787363732,8.57245841,137.07,136.97,72.09883688]
[1720787363945,8.57265841,137.07,136.97,52.09883688]
[1720787364124,1.27695841,137.07,136.98,1.45958092]
[1720787364321,1.27695841,137.07,136.99,1.45941189]
[1720787364659,8.57255841,137.07,136.99,1.45941189]
[1720787364838,1.27695841,137.06,136.97,52.09883688]
[1720787365038,8.57215841,137.08,136.97,52.09883688]
[1720787365347,1.27695841,137.07,136.98,20.0]
[1720787365749,8.57265841,137.07,136.98,20.0]
[1720787366234,8.57265841,137.07,136.99,1.45919629]
[1720787366635,8.57265841,137.07,136.98,20.0]
[1720787367753,8.57255841,137.07,136.97,52.09883688]
[1720787367931,1.27695841,137.07,136.97,52.09883688]
[1720787368132,1.27695841,137.07,136.97,7.09883688]
[1720787368339,1.27695841,137.07,136.98,1.0612705]
[1720787368542,7.2963,137.06,136.98,1.0612705]
[1720787368740,1.27695841,137.05,136.98,1.0612705]
[1720787368945,1.27695841,137.04,136.98,1.0612705]
[1720787369154,1.27695841,137.04,136.99,1.06119304]
[1720787369449,8.57265841,137.07,136.99,1.06119304]
[1720787369652,1.27695841,137.07,136.98,20.0]
[1720787369842,8.57245841,137.07,136.98,20.0]
[1720787371053,1.27695841,137.06,136.99,45.0]
[1720787371260,1.27695841,137.06,137.0,20.0]
[1720787371553,1.27695841,137.07,137.0,21.07494271]
[1720787372658,1.27695841,137.06,137.0,21.07494271]
[1720787372960,1.27695841,137.08,137.0,21.07494271]
[1720787373258,8.57245841,137.08,137.0,20.0]
[1720787373445,1.27695841,137.07,136.98,20.0]
[1720787373641,1.27695841,137.07,136.99,45.64117307]
[1720787373848,1.27695841,137.07,137.0,20.0]
[1720787374636,1.0472455,137.09,137.0,20.0]
[1720787374637,1.27695841,137.06,137.0,20.0]
[1720787375055,1.27695841,137.08,137.0,20.58673513]
[1720787375259,1.27695841,137.07,137.0,0.58673513]
[1720787375648,1.27695841,137.07,136.99,1.44434114]
[1720787376061,1.27695841,137.07,136.98,20.0]
[1720787376234,1.27695841,137.06,136.98,20.0]
[1720787376437,1.27695841,137.06,136.99,0.44769154]
[1720787376860,1.27695841,137.06,136.99,45.44769154]
[1720787377055,1.27695841,137.07,137.0,20.0]
[1720787377235,2.32420391,137.09,137.01,45.44762618]
[1720787377434,2.32420391,137.09,137.02,1.45925731]
[1720787377651,2.32420391,137.09,136.97,14.39433688]
[1720787377866,7.2953,137.08,136.98,45.0]
[1720787378041,1.27695841,137.07,136.98,45.0]
[1720787378956,1.27695841,137.07,136.99,1.45953029]
[1720787379263,1.27695841,137.07,136.98,45.0]
[1720787379565,1.27695841,137.07,136.99,20.0]
[1720787379861,1.27695841,137.07,137.0,45.0]
[1720787380248,1.27695841,137.07,136.99,20.0]
[1720787380249,8.57255841,137.07,136.99,20.0]
[1720787380450,8.57255841,137.07,136.98,20.0]
[1720787381540,7.2961,137.06,136.98,20.0]
[1720787381738,1.27695841,137.05,136.98,20.0]
[1720787381938,1.27695841,137.04,136.92,16.18361618]
[1720787382164,1.27695841,137.04,136.93,18.14608288]
[1720787382366,1.27695841,137.04,136.94,7.09883688]
[1720787382544,1.27695841,137.08,136.94,7.09883688]
[1720787382749,7.2962,137.06,136.95,1.09213137]
[1720787382948,1.27695841,137.05,136.95,8.19096825]
[1720787383263,1.27695841,137.04,136.96,20.0]
[1720787383771,1.27695841,137.04,136.97,1.26202671]
[1720787383939,8.57425841,137.04,136.95,7.09883688]
[1720787384146,1.27695841,137.03,136.95,7.09883688]
[1720787384842,1.27695841,137.03,136.96,1.46003471]
[1720787385369,18.2382,137.08,136.95,7.09883688]
[1720787385370,7.2964,137.06,136.95,7.09883688]
[1720787385567,7.2966,137.05,136.96,20.0]
[1720787385863,7.2962,137.06,136.96,20.0]
[1720787386044,10.0,137.05,136.96,20.0]
[1720787386869,7.2971,137.04,136.96,20.0]
[1720787388469,17.2967,137.05,136.96,20.0]
[1720787389140,10.0,137.07,136.96,20.0]
[1720787389566,7.2962,137.06,136.96,20.0]
[1720787389768,10.0,137.07,136.96,20.0]
[1720787389945,9.78975025,137.06,136.96,20.0]
[1720787390146,29.2838455,137.09,136.96,20.0]
[1720787390473,17.0850155,137.08,136.96,20.0]
[1720787390768,8.3417455,137.09,136.97,45.0]
[1720787391068,7.295,137.08,136.98,20.0]
[1720787391273,7.295,137.08,136.99,45.0]
[1720787391460,7.295,137.08,137.0,20.0]
[1720787391667,1.0472455,137.09,136.96,7.09883688]
[1720787391973,1.0472455,137.09,136.97,65.0]
[1720787392567,1.0472455,137.09,136.97,72.09883688]
[1720787392746,1.0472455,137.09,136.98,7.09883688]
[1720787392941,8.3420455,137.09,136.99,65.0]
[1720787393547,1.0472455,137.09,136.99,65.0]
[1720787393747,1.0472455,137.09,136.99,20.0]
[1720787393748,7.2951,137.08,136.99,20.0]
[1720787394680,7.2957,137.07,136.99,20.0]
[1720787394846,7.2951,137.08,136.99,20.0]
[1720787395164,1.0472455,137.09,136.99,20.0]
[1720787395580,7.2954,137.08,136.99,20.0]
[1720787395781,7.2957,137.07,136.99,20.0]
[1720787396088,7.2951,137.08,136.99,20.0]
[1720787396268,8.3417455,137.09,136.99,20.0]
[1720787396463,8.3417455,137.09,137.0,45.0]
[1720787396677,7.2953,137.08,136.99,20.0]
[1720787396883,7.2956,137.07,136.99,20.0]
[1720787397059,7.2963,137.06,136.99,20.0]
[1720787397557,7.2963,137.06,136.96,20.0]
[1720787397970,7.2963,137.06,136.95,20.0]
[1720787398383,7.2967,137.05,136.94,7.09883688]
[1720787398952,7.2972,137.04,136.94,10.05144201]
[1720787399291,7.2967,137.05,136.94,7.09883688]
[1720787399470,7.2967,137.05,136.95,20.0]
[1720787399672,7.2966,137.05,136.95,20.0]
[1720787399877,10.0,137.07,136.95,20.0]
[1720787400081,7.2971,137.05,136.95,20.0]
[1720787400582,17.296,137.07,136.95,20.0]
[1720787400788,10.0,137.04,136.94,7.09883688]
[1720787400963,10.0,137.02,136.81,50.76]
[1720787401173,10.0,136.98,136.85,25.88331539]
[1720787401494,45.0,137.04,136.85,18.2376]
[1720787401495,10.0,136.93,136.85,18.2376]
[1720787401662,10.0,136.91,136.67,6.58767288]
[1720787401864,10.0,136.87,136.68,25.883315]
[1720787402110,40.76,136.78,136.56,7.54321209]
[1720787402414,40.76,136.62,136.52,3.773261]
[1720787402683,40.76,136.62,136.36,13.18175363]
[1720787402684,10.0,136.52,136.36,13.18175363]
[1720787402911,40.76,136.53,136.43,5.27596812]
[1720787402912,10.0,136.47,136.43,5.27596812]
[1720787403084,10.0,136.44,136.43,0.59956812]
[1720787403397,10.0,136.42,136.24,38.07873553]
[1720787403699,10.0,136.39,136.37,2.21213446]
[1720787403899,10.0,136.35,136.05,36.70064541]
[1720787404211,10.0,136.34,136.16,40.76]
[1720787404375,21.6668,136.33,136.24,7.32]
[1720787404700,10.99983848,136.35,136.24,7.32]
[1720787404914,10.99983848,136.37,136.24,7.32]
[1720787405197,10.99983848,136.37,136.26,21.44878551]
[1720787405403,10.99983848,136.37,136.21,40.76]
[1720787405774,10.0,136.47,136.21,40.76]
[1720787405995,10.0,136.44,136.21,40.76]
[1720787406180,10.0,136.42,136.21,40.76]
[1720787406390,10.0,136.42,136.22,8.4086301]
[1720787406580,10.0,136.34,136.07,19.66627698]
[1720787406806,10.0,136.43,136.15,40.76]
[1720787406996,10.0,136.47,136.22,40.76]
[1720787407305,10.0,136.39,136.22,8.4086301]
[1720787407518,10.0,136.5,136.22,49.1686301]
[1720787407681,10.0,136.46,136.22,49.1686301]
[1720787408000,5.78926376,136.56,136.27,10.0]
[1720787408185,10.0,136.55,136.29,15.0]
[1720787408387,10.0,136.54,136.3,28.4086301]
[1720787408592,10.0,136.59,136.31,45.0]
[1720787408793,10.0,136.61,136.32,43.4086301]
[1720787409106,10.0,136.61,136.37,40.76]
[1720787409307,10.0,136.62,136.38,65.0]
[1720787409506,10.0,136.64,136.38,73.4086301]
[1720787409684,7.32,136.66,136.38,73.4086301]
[1720787409685,10.0,136.62,136.38,73.4086301]
[1720787409881,10.0,136.58,136.38,73.4086301]
[1720787410210,10.0,136.62,136.38,73.4086301]
[1720787410397,10.0,136.58,136.38,73.4086301]
[1720787410576,10.0,136.64,136.38,73.4086301]
[1720787410781,11.01140448,136.59,136.41,15.0]
[1720787410982,11.01140448,136.59,136.42,65.0]
[1720787411404,21.01140448,136.59,136.42,65.0]
[1720787411591,11.01140448,136.58,136.42,20.0]
[1720787411808,10.0,136.56,136.36,8.4086301]
[1720787411979,10.0,136.58,136.36,8.4086301]
[1720787412180,10.0,136.57,136.36,8.4086301]
[1720787412595,10.0,136.58,136.36,8.4086301]
[1720787412800,10.0,136.56,136.36,8.4086301]
[1720787413085,10.0,136.6,136.36,8.4086301]
[1720787413294,10.0,136.58,136.36,8.4086301]
[1720787413496,10.0,136.6,136.36,8.4086301]
[1720787413695,10.0,136.58,136.36,8.4086301]
[1720787413896,10.0,136.62,136.4,15.0]
[1720787414097,10.0,136.66,136.41,73.4086301]
[1720787414347,42.87329718,136.68,136.43,40.76]
[1720787414505,21.8586495,136.68,136.45,36.99]
[1720787414695,0.8472455,136.68,136.46,95.3986301]
[1720787414897,0.8472455,136.68,136.49,62.75]
[1720787415095,0.8472455,136.68,136.51,21.99]
[1720787415295,0.8472455,136.68,136.55,40.76]
[1720787415490,0.8472455,136.68,136.56,65.0]
[1720787415687,0.8472455,136.68,136.56,20.0]
[1720787415992,0.8472455,136.68,136.57,45.0]
[1720787416397,0.8472455,136.68,136.58,20.0]
[1720787416594,0.8472455,136.68,136.59,84.64]
[1720787416919,0.8472455,136.68,136.6,20.0]
[1720787417108,0.8472455,136.68,136.61,45.0]
[1720787417414,0.8472455,136.68,136.62,20.0]
[1720787417599,0.8472455,136.68,136.63,45.0]
[1720787417799,0.8472455,136.68,136.5,15.0]
[1720787418011,7.318,136.65,136.46,8.4086301]
[1720787418198,0.8472455,136.68,136.53,39.64]
[1720787418518,0.8472455,136.68,136.52,39.64]
[1720787418751,0.8472455,136.68,136.62,39.64]
[1720787419017,0.8472455,136.68,136.54,39.64]
[1720787419194,8.1637455,136.68,136.54,39.64]
[1720787419396,0.8472455,136.68,136.58,39.64]
[1720787419599,0.8472455,136.68,136.5,39.64]
[1720787419806,10.0,136.67,136.47,39.64]
[1720787420006,45.0,136.66,136.47,39.64]
[1720787420208,10.0,136.62,136.47,39.64]
[1720787420423,10.0,136.62,136.43,39.64]
[1720787420613,10.0,136.56,136.38,8.4086301]
[1720787420810,45.0,136.61,136.44,39.64]
[1720787421013,10.0,136.55,136.38,8.4086301]
[1720787421196,10.0,136.5,136.36,39.64]
[1720787421399,28.3129,136.52,136.36,39.64]
[1720787421614,10.0,136.48,136.36,39.64]
[1720787421924,10.0,136.51,136.36,39.64]
[1720787422105,45.0,136.5,136.36,39.64]
[1720787422307,10.0,136.46,136.29,39.64]
[1720787422624,10.0,136.43,136.29,39.64]
[1720787422799,45.0,136.42,136.29,39.64]
[1720787423001,10.0,136.43,136.29,39.64]
[1720787423204,45.0,136.45,136.29,39.64]
[1720787423436,10.0,136.44,136.29,39.64]
[1720787423720,7.3327,136.38,136.29,39.64]
[1720787423927,7.3251,136.52,136.34,39.64]
[1720787424094,10.0,136.48,136.34,39.64]
[1720787424298,10.0,136.49,136.34,39.64]
[1720787424525,10.0,136.51,136.34,39.64]
[1720787424727,7.3269,136.49,136.34,39.64]
[1720787424905,10.0,136.46,136.34,39.64]
[1720787425105,10.0,136.44,136.29,39.64]
[1720787425311,10.0,136.43,136.27,39.64]